bitfinex/quotes_ETHUSD_20250801
["timestamp","ask_amount","ask_price","bid_price","bid_amount"]
[1754057220827,2.3206,3597.1,3595.6,0.57813317]
[1754057221156,5.204,3597.2,3595.8,2.7810223]
[1754057221358,5.204,3597.2,3596.8,2.78017867]
[1754057221565,0.001,3597.4,3596.9,0.02780171]
[1754057221751,0.001,3597.4,3596.5,2.78044461]
[1754057222062,0.001,3597.4,3597.3,2.77986267]
[1754057222262,0.001,3597.4,3596.4,2.78055833]
[1754057222561,0.001,3597.4,3596.3,0.2338]
[1754057222562,0.001,3597.4,3597.3,2.77986267]
[1754057223070,0.001,3597.4,3597.3,2.80766129]
[1754057223232,0.001,3597.4,3597.3,2.77986267]
[1754057223432,0.001,3597.4,3597.3,2.80766129]
[1754057223849,0.001,3597.4,3597.3,2.77986267]
[1754057224352,0.001,3597.4,3597.3,2.80766129]
[1754057224778,0.001,3597.4,3597.3,2.77986267]
[1754057224980,0.001,3597.4,3596.4,2.78055833]
[1754057225150,0.442,3597.4,3597.0,2.78006427]
[1754057225481,0.442,3597.4,3595.6,0.21038596]
[1754057225482,2.3129,3597.3,3595.6,0.21038596]
[1754057225780,2.3129,3597.3,3596.9,2.78012136]
[1754057225982,0.001,3597.4,3596.1,3.0]
[1754057226158,0.001,3597.4,3595.9,3.0]
[1754057226356,0.441,3597.3,3595.6,8.2]
[1754057226580,0.001,3597.4,3597.3,2.77986267]
[1754057226801,0.001,3597.4,3597.3,2.80766129]
[1754057227093,1e-08,3597.4,3597.3,3.61414257]
[1754057227309,0.24918409,3597.4,3597.3,3.41914742]
[1754057227451,0.39880299,3597.4,3597.3,2.92426805]
[1754057227648,0.8234826,3598.2,3597.5,5.77965832]
[1754057227849,0.8234826,3598.2,3598.1,2.7792446]
[1754057228072,1.8719,3599.6,3598.9,2.77857843]
[1754057228287,1.8719,3599.6,3599.0,2.77854959]
[1754057228471,0.441,3599.8,3599.0,2.77854959]
[1754057228985,1.8719,3600.5,3599.0,2.77854959]
[1754057228986,0.441,3600.2,3599.0,2.77854959]
[1754057229601,0.441,3599.8,3598.8,2.77864196]
[1754057229903,0.441,3599.8,3598.4,5.198]
[1754057230051,0.441,3599.8,3599.0,2.77854959]
[1754057230502,0.441,3599.8,3598.5,5.198]
[1754057230655,0.441,3600.1,3599.0,2.77854959]
[1754057230857,3.14954821,3600.5,3599.0,2.77854959]
[1754057231070,0.441,3600.2,3599.0,2.77854959]
[1754057231525,0.441,3599.8,3599.0,2.77854959]
[1754057232420,0.441,3599.9,3599.0,2.77854959]
[1754057232620,0.451,3600.0,3599.0,2.77854959]
[1754057232923,0.451,3600.0,3598.6,5.195]
[1754057233139,0.451,3600.0,3597.8,5.77940991]
[1754057233140,0.441,3599.0,3597.9,5.194]
[1754057233286,0.441,3599.0,3597.4,6.68]
[1754057233629,0.55,3598.9,3597.4,5.194]
[1754057233795,0.441,3598.8,3597.8,2.77940372]
[1754057233992,2.44969862,3598.7,3596.5,0.20583841]
[1754057234203,0.55,3598.3,3596.8,2.78019168]
[1754057234392,3.55,3598.1,3596.8,2.78019168]
[1754057234592,0.441,3598.0,3596.6,2.78040371]
[1754057234827,1.8719,3598.2,3596.7,0.29862421]
[1754057234987,0.441,3598.4,3596.8,3.02780249]
[1754057235206,0.441,3598.9,3598.1,2.77924398]
[1754057235392,0.441,3598.9,3596.9,0.2338]
[1754057235826,0.55,3598.8,3597.8,2.77940255]
[1754057236048,0.441,3598.7,3596.9,5.192]
[1754057236192,0.441,3598.7,3597.3,2.77979768]
[1754057236408,0.441,3598.7,3597.9,2.779325]
[1754057236702,2.05506912,3599.1,3597.4,0.02779785]
[1754057236891,0.441,3599.0,3598.0,2.77931531]
[1754057237091,0.55,3598.9,3598.1,2.4452063]
[1754057237326,1.04560691,3598.8,3596.6,0.2338]
[1754057237501,0.55,3598.6,3596.5,3.0]
[1754057237701,0.55,3598.4,3597.0,2.78005333]
[1754057237906,0.55,3598.4,3596.8,3.0]
[1754057238110,0.441,3598.9,3598.4,2.77893613]
[1754057238343,0.441,3598.9,3597.6,2.77960699]
[1754057238628,0.441,3598.9,3598.6,0.1392]
[1754057238835,0.441,3598.9,3597.6,0.8204407]
[1754057238836,1.8719,3598.8,3598.1,2.77922595]
[1754057239039,1.8719,3598.8,3598.6,0.1392]
[1754057239040,2.3129,3598.8,3598.6,0.1392]
[1754057239240,0.18316912,3599.1,3598.7,0.1392]
[1754057239410,0.62416912,3599.1,3598.4,2.77901289]
[1754057239738,0.24849786,3599.0,3598.9,0.1392]
[1754057240158,0.24849786,3599.0,3598.6,2.77885727]
[1754057240437,0.18316912,3599.1,3598.9,0.1392]
[1754057240634,0.24807255,3599.0,3598.9,0.1392]
[1754057241141,0.24807255,3599.0,3598.5,2.77892289]
[1754057241314,0.24807255,3599.0,3598.0,2.77928594]
[1754057241315,0.18316912,3599.1,3598.9,0.1392]
[1754057241639,0.24819833,3599.0,3598.9,2.9178268]
[1754057242226,0.24819833,3599.0,3598.0,5.189]
[1754057242415,0.24819833,3598.9,3598.0,5.84534438]
[1754057242619,0.18316912,3599.1,3598.6,2.7788523]
[1754057242620,0.24819833,3598.8,3598.6,2.7788523]
[1754057242912,0.24808157,3598.7,3598.6,2.77885844]
[1754057243122,0.24808157,3598.7,3598.6,5.77885844]
[1754057243321,0.24808157,3598.7,3598.6,3.33464379]
[1754057243914,0.24808157,3598.7,3598.6,2.77885844]
[1754057244347,0.18316912,3599.1,3599.0,2.77854959]
[1754057245141,0.18316912,3599.1,3598.2,5.5583096]
[1754057245142,0.18316912,3599.1,3598.6,2.77880186]
[1754057245435,2.3129,3599.0,3597.9,5.186]
[1754057245651,0.55,3598.9,3597.4,0.002]
[1754057245808,3.991,3598.9,3597.8,2.77945257]
[1754057246003,4.8719,3599.0,3597.9,2.77937937]
[1754057246240,0.55,3598.7,3597.6,2.7795669]
[1754057246540,3.55,3597.9,3595.9,0.2338]
[1754057246739,0.55,3597.7,3596.0,2.78086763]
[1754057246941,0.55,3597.5,3596.5,2.78044311]
[1754057247147,0.55,3597.5,3596.0,2.66584986]
[1754057247440,1.8719,3597.8,3597.0,2.78003947]
[1754057247629,0.55,3597.7,3597.2,2.77988324]
[1754057247824,0.55,3598.0,3596.7,2.78032641]
[1754057248003,0.441,3598.4,3596.8,0.59334821]
[1754057248204,0.441,3598.4,3596.6,0.2338]
[1754057248205,1.8719,3598.5,3597.9,0.1392]
[1754057248426,3.991,3598.4,3597.6,2.77962773]
[1754057248629,0.441,3598.9,3597.7,0.01387767]
[1754057248828,5.184,3599.2,3598.4,2.77900973]
[1754057249034,0.18316912,3599.1,3598.8,0.1392]
[1754057249216,0.18316912,3599.1,3599.0,2.77854959]
[1754057249423,0.18316912,3599.1,3599.0,2.91774959]
[1754057249818,0.18316912,3599.1,3598.8,2.77870275]
[1754057250025,0.18316912,3599.1,3599.0,2.91774959]
[1754057250835,0.01,3600.0,3599.0,2.91774959]
[1754057251039,0.01,3600.0,3599.9,2.77785494]
[1754057251255,0.01,3600.0,3599.9,2.10994848]
[1754057251429,0.01,3600.0,3599.9,2.77785494]
[1754057251835,1e-08,3600.1,3600.0,2.77777777]
[1754057252051,1e-08,3600.1,3600.0,6.57402681]
[1754057252454,1e-08,3600.1,3600.0,0.79624904]
[1754057252620,0.441,3601.3,3600.5,2.7773762]
[1754057252621,0.24100001,3601.3,3600.5,2.7773762]
[1754057252821,0.24100001,3601.3,3600.4,2.77741336]
[1754057253020,7.30477844,3601.1,3599.1,2.77847239]
[1754057253325,0.55,3600.9,3598.9,11.856]
[1754057253525,0.55,3600.9,3599.0,3.0]
[1754057253740,0.55,3600.9,3600.3,2.77748177]
[1754057253944,7.30477844,3602.3,3600.7,2.77716883]
[1754057254167,1.8719,3601.8,3599.9,3.0]
[1754057254366,1.8719,3601.8,3600.7,3.0]
[1754057254570,1.8719,3601.8,3600.6,3.0]
[1754057254755,0.441,3602.0,3601.5,2.77660242]
[1754057254955,2.3476039,3601.9,3600.0,0.818]
[1754057255156,2.3476039,3601.9,3598.5,3.06307026]
[1754057255157,2.3129,3601.9,3599.7,0.2]
[1754057255344,0.69819,3601.8,3600.8,2.77709836]
[1754057255545,0.55,3601.6,3599.3,0.2]
[1754057255799,0.55,3601.4,3600.1,2.77764306]
[1754057256087,0.55,3601.4,3599.4,7.95519271]
[1754057256088,3.55,3601.0,3599.4,2.77818218]
[1754057256384,3.55,3601.0,3599.2,5.177]
[1754057256385,0.55,3600.8,3599.2,5.177]
[1754057256551,3.96895802,3600.9,3599.2,5.177]
[1754057256552,0.55,3600.6,3599.8,2.77787928]
[1754057256751,0.55,3600.4,3599.8,2.77787928]
[1754057256952,0.55,3600.2,3599.7,2.77799895]
[1754057257156,0.55,3600.0,3599.9,2.1099745]
[1754057257347,0.79788599,3600.0,3599.9,2.1099745]
[1754057257577,0.79788599,3600.0,3599.9,2.77785494]
[1754057257816,0.79788599,3600.0,3599.7,2.77795044]
[1754057258090,0.55,3599.8,3599.3,2.77829596]
[1754057258274,0.55,3599.6,3599.3,2.77826055]
[1754057258601,0.55,3599.4,3599.2,2.7783331]
[1754057258898,0.55,3599.4,3599.1,2.77847239]
[1754057258899,0.24788599,3599.3,3599.1,2.77847239]
[1754057259099,0.24859745,3599.2,3599.1,5.77847239]
[1754057259262,0.24859745,3599.2,3599.1,5.1107111]
[1754057259596,0.24859745,3599.2,3599.1,5.77847239]
[1754057259797,0.24859745,3599.2,3593.0,0.60334695]
[1754057259798,0.24859745,3599.2,3596.8,6.675]
[1754057260001,0.79859745,3599.1,3597.6,2.77961887]
[1754057260150,0.24859745,3599.0,3597.8,2.77947634]
[1754057260347,0.55,3598.8,3598.5,2.77886712]
[1754057260648,0.55,3598.6,3596.7,2.78031148]
[1754057260955,1.891,3599.2,3597.9,2.77938589]
[1754057260956,0.55,3598.4,3597.9,2.77938589]
[1754057261257,0.55,3598.2,3598.1,0.1392]
[1754057261467,0.55,3598.2,3597.3,5.173]
[1754057261468,0.79859745,3598.2,3597.9,2.7793944]
[1754057261780,2.77704191,3601.0,3597.3,5.173]
[1754057261781,0.24859745,3598.1,3598.0,2.77932184]
[1754057261995,0.24859745,3598.1,3597.9,2.77939909]
[1754057262313,0.24859745,3598.0,3597.9,2.77939909]
[1754057262585,0.24859745,3598.0,3597.7,2.7795494]
[1754057262753,0.24859745,3597.9,3597.8,2.77947634]
[1754057262952,0.24859745,3597.9,3597.8,6.60011711]
[1754057263269,0.4669,3599.2,3597.8,6.60011711]
[1754057263270,0.55,3599.1,3598.6,2.77885529]
[1754057263471,1.891,3599.7,3598.1,3.0]
[1754057263670,0.4669,3599.9,3598.2,2.77916736]
[1754057263869,0.4669,3599.9,3598.1,2.7792446]
[1754057264074,1.891,3600.6,3599.8,2.7779321]
[1754057264264,1.891,3600.6,3598.4,2.77901289]
[1754057264265,1.88850333,3600.6,3599.9,2.9328405]
[1754057264587,4.88850333,3600.6,3600.0,2.77770255]
[1754057264760,1.88850333,3600.6,3599.8,2.77788118]
[1754057264966,1.88850333,3600.6,3599.1,2.77847239]
[1754057265275,0.91932818,3600.5,3599.8,2.77787973]
[1754057265588,0.91932818,3600.5,3599.0,5.171]
[1754057265589,0.91932818,3600.5,3599.1,3.0]
[1754057265789,0.91932818,3600.5,3600.0,2.77772749]
[1754057265963,0.55,3600.4,3599.5,2.77816363]
[1754057266149,1.88850333,3600.6,3599.1,3.0]
[1754057266352,1.88850333,3600.6,3600.0,2.77776764]
[1754057266591,0.55,3600.5,3599.0,5.171]
[1754057266788,0.55,3600.5,3599.7,2.7780035]
[1754057266975,0.55,3600.5,3599.1,2.77847239]
[1754057266976,0.55,3600.5,3599.8,2.77792943]
[1754057267173,0.55,3600.5,3599.9,2.44405735]
[1754057267379,0.55,3600.5,3599.0,5.171]
[1754057267594,0.55,3600.5,3599.2,2.77839519]
[1754057267789,0.55,3600.5,3599.8,2.77786282]
[1754057267991,0.28926108,3600.5,3599.1,0.56054]
[1754057268287,0.28926108,3600.5,3599.8,2.77790778]
[1754057268488,0.28926108,3600.5,3599.1,3.33897546]
[1754057268696,0.4669,3600.4,3599.7,2.77798177]
[1754057268893,0.4669,3600.4,3599.1,8.167]
[1754057269067,0.4669,3600.4,3599.5,2.77809192]
[1754057269263,0.4669,3600.4,3599.0,5.167]
[1754057269599,0.4669,3600.4,3599.0,3.21995269]
[1754057269890,0.55,3600.0,3598.7,5.166]
[1754057270076,0.55,3600.0,3597.8,2.77946673]
[1754057270077,1.0169,3600.0,3597.8,2.77946673]
[1754057270279,0.80827502,3600.0,3597.9,5.165]
[1754057270470,0.81130535,3599.9,3598.0,3.0]
[1754057270666,0.81130535,3599.9,3598.0,3.0325]
[1754057270856,0.80827502,3600.0,3599.3,2.77830266]
[1754057271093,0.80827502,3600.0,3599.3,2.77825931]
[1754057271293,0.80827502,3600.0,3598.7,5.165]
[1754057271806,0.80827502,3600.0,3598.9,2.7786268]
[1754057271986,1.61958037,3600.0,3598.2,3.0]
[1754057272155,7.30477844,3599.4,3598.3,5.164]
[1754057272354,1.15268037,3600.0,3598.7,2.77875248]
[1754057272355,0.55,3599.5,3598.7,2.77875248]
[1754057272682,0.55,3599.5,3598.3,7.94308452]
[1754057272989,0.55,3599.5,3598.1,5.163]
[1754057273297,0.55,3599.5,3598.5,2.77893112]
[1754057273468,0.55,3599.5,3599.0,0.1392]
[1754057273789,0.55,3599.1,3597.6,5.375743]
[1754057273978,0.55,3599.1,3598.0,2.77927272]
[1754057274316,0.55,3599.1,3597.6,4.12378041]
[1754057274317,0.31041851,3599.6,3597.7,3.0]
[1754057274470,0.55,3599.5,3598.3,2.77907455]
[1754057274675,0.55,3599.5,3598.1,3.0]
[1754057275059,0.55,3599.5,3598.0,3.0]
[1754057275269,0.55,3599.3,3598.7,2.77877719]
[1754057275488,0.55,3599.1,3598.7,2.77877719]
[1754057275692,0.24837704,3599.0,3598.6,2.77885844]
[1754057275898,0.26556644,3600.5,3597.9,5.161]
[1754057276192,0.001,3600.5,3598.9,3.0]
[1754057276497,0.001,3600.5,3599.0,0.189]
[1754057276704,0.001,3600.5,3600.4,2.77746917]
[1754057276913,0.001,3600.5,3600.4,0.15454264]
[1754057277207,0.001,3600.5,3597.9,2.77934725]
[1754057277208,0.001,3600.5,3599.5,3.0]
[1754057277409,0.001,3600.5,3599.7,3.189]
[1754057277573,0.001,3600.5,3600.4,2.77746917]
[1754057277783,0.834284,3602.4,3600.5,2.77739202]
[1754057278013,1.891,3602.5,3601.6,2.77654063]
[1754057278303,1.891,3602.5,3600.9,2.7770831]
[1754057278487,0.86495188,3602.6,3601.1,2.96592243]
[1754057278834,0.86495188,3602.6,3602.0,2.77617789]
[1754057279040,0.86495188,3602.6,3602.2,2.77607333]
[1754057279176,0.86495188,3602.6,3601.4,2.77669795]
[1754057279377,0.86495188,3602.6,3601.5,0.189]
[1754057279619,0.86495188,3602.6,3601.7,3.0]
[1754057279817,0.86495188,3602.6,3600.4,7.50501551]
[1754057280022,0.4669,3602.5,3600.5,1.7986231]
[1754057280204,0.55,3602.4,3601.6,2.77646711]
[1754057280424,0.86495188,3602.6,3601.3,0.189]
[1754057280622,0.86495188,3602.6,3601.4,2.77669795]
[1754057280820,0.86495188,3602.6,3601.3,2.77677505]
[1754057280997,1.891,3603.6,3602.9,2.77553213]
[1754057281335,6.674,3604.2,3603.0,2.77546489]
[1754057281691,2.3579,3604.3,3603.0,2.77546489]
[1754057281935,0.001,3604.7,3603.0,2.77546489]
[1754057282135,0.4669,3604.6,3603.0,2.77546489]
[1754057282293,0.4669,3604.1,3602.6,2.77575957]
[1754057282498,0.4669,3604.1,3602.2,0.189]
[1754057282499,7.30477844,3603.8,3602.8,2.7756148]
[1754057282807,2.3579,3604.1,3602.8,2.77557519]
[1754057283021,2.3579,3604.1,3602.5,0.189]
[1754057283224,2.3579,3604.1,3603.5,2.77505683]
[1754057283420,0.001,3604.7,3602.8,0.189]
[1754057283624,0.001,3604.7,3603.8,2.77478792]
[1754057283821,0.001,3604.7,3602.8,0.189]
[1754057284034,0.001,3604.7,3602.4,2.77592715]
[1754057284237,0.001,3604.7,3604.5,0.1384]
[1754057284417,0.001,3604.7,3603.3,2.7751706]
[1754057284616,0.4669,3604.6,3604.3,0.1384]
[1754057284846,0.4669,3604.5,3604.3,0.1384]
[1754057285045,0.4669,3604.5,3602.3,7.92898447]
[1754057285046,2.3579,3604.5,3603.3,2.77521843]
[1754057285264,2.3579,3604.5,3602.0,0.21159998]
[1754057285265,0.55,3604.3,3604.2,0.1384]
[1754057285464,0.55,3604.1,3601.5,5.15]
[1754057285605,3.55,3603.9,3601.5,5.15]
[1754057285814,0.55,3603.9,3601.9,2.7763125]
[1754057286012,0.55,3603.9,3601.9,5.149]
[1754057286344,0.55,3603.7,3602.7,2.77563504]
[1754057286547,0.55,3603.7,3601.8,0.20647916]
[1754057286752,0.55,3603.7,3601.5,0.83368]
[1754057286753,0.55,3603.9,3603.2,2.77525494]
[1754057286919,0.55,3603.9,3602.5,2.77580408]
[1754057286920,0.55,3603.9,3602.9,2.7755184]
[1754057287119,1.1198,3603.9,3602.5,2.7758501]
[1754057287319,1.1198,3603.9,3602.4,3.0]
[1754057287320,0.55,3603.7,3602.3,2.77596021]
[1754057287525,0.55,3603.3,3601.8,2.77638958]
[1754057287721,0.55,3603.3,3602.6,2.7757023]
[1754057288056,0.55,3603.7,3601.6,2.77651152]
[1754057288262,0.55,3602.6,3601.2,3.61049953]
[1754057288469,7.28465866,3602.1,3600.2,0.21002082]
[1754057288611,0.55,3602.0,3599.9,5.146]
[1754057288816,0.55,3601.8,3600.0,2.77777777]
[1754057289124,0.4565,3604.3,3601.2,2.77685216]
[1754057289331,0.4565,3604.3,3601.7,7.28465866]
[1754057289531,1.9421,3605.0,3601.7,7.28465866]
[1754057289732,2.3986,3605.0,3602.4,0.55]
[1754057289956,0.4565,3605.0,3602.7,2.775696]
[1754057290273,0.4565,3605.0,3602.5,5.58615674]
[1754057290274,0.95889034,3605.5,3603.1,2.77538786]
[1754057290417,0.95889034,3605.5,3603.2,0.15458745]
[1754057290615,0.4565,3605.7,3604.6,2.77423292]
[1754057290849,1e-08,3604.7,3604.6,2.92882037]
[1754057291052,0.4565,3606.4,3605.4,2.77360131]
[1754057291253,0.4565,3606.4,3604.1,7.76773087]
[1754057291254,0.833277,3606.5,3606.0,2.7731355]
[1754057291555,1.9421,3608.1,3607.3,2.77215646]
[1754057291862,0.4565,3608.3,3607.3,2.92674391]
[1754057292170,0.49114235,3608.3,3607.3,0.15458745]
[1754057292346,0.4565,3608.3,3607.3,0.15458745]
[1754057293366,2.57820336,3607.4,3606.4,2.77283735]
[1754057293573,2.57820336,3607.4,3606.5,0.15379689]
[1754057293731,2.57820336,3607.4,3605.3,0.0025]
[1754057293732,0.71432034,3607.3,3606.6,0.15379689]
[1754057293916,1.0065,3607.2,3606.7,0.15379689]
[1754057294120,3.55,3607.0,3603.9,2.77471339]
[1754057294343,3.0,3607.2,3603.8,5.1425]
[1754057294344,3.55,3606.8,3603.8,5.1425]
[1754057294625,2.77306716,3606.2,3603.5,2.77501919]
[1754057294824,2.77306716,3606.2,3603.3,6.666]
[1754057294825,0.55,3605.9,3603.8,2.77484756]
[1754057295128,0.55,3605.9,3604.5,2.77430508]
[1754057295345,0.4565,3606.6,3603.5,2.77504798]
[1754057295520,0.4565,3606.6,3603.6,2.77500277]
[1754057295521,0.03465964,3606.5,3603.6,2.77500277]
[1754057295723,0.55,3606.1,3605.7,0.1384]
[1754057295920,0.55,3605.9,3605.3,0.1384]
[1754057296235,0.29486,3605.8,3605.3,0.1384]
[1754057296425,2.9486,3605.7,3605.3,0.1384]
[1754057296628,0.55,3605.5,3605.1,0.1384]
[1754057296873,0.55,3605.3,3605.1,0.1384]
[1754057297017,0.55,3605.1,3603.3,6.666]
[1754057297221,0.84486,3605.1,3603.3,6.666]
[1754057297455,0.84486,3605.1,3603.5,2.7750633]
[1754057297635,0.84486,3605.1,3603.5,3.0]
[1754057297837,0.84486,3605.1,3603.3,6.666]
[1754057298271,0.84486,3605.1,3604.1,2.77455054]
[1754057298450,3.0,3606.1,3603.8,3.0]
[1754057298621,0.4565,3605.6,3604.5,2.77430128]
[1754057298824,1.9421,3605.8,3604.6,2.77417376]
[1754057299052,1.9421,3605.8,3604.5,3.0]
[1754057299269,0.55,3605.7,3604.6,2.77422153]
[1754057299475,0.55,3605.5,3604.6,2.77422153]
[1754057299978,1.9421,3605.8,3604.4,3.0]
[1754057300280,1.9421,3606.6,3605.7,2.77332132]
[1754057300425,0.71432034,3607.3,3606.3,2.77285871]
[1754057300769,0.25782034,3607.3,3604.9,2.77393121]
[1754057300931,5.43325291,3607.2,3604.7,3.0]
[1754057301270,0.55,3606.5,3603.9,3.0]
[1754057301569,3.32292857,3606.3,3604.6,2.77416253]
[1754057301720,2.3986,3606.4,3603.9,3.21406771]
[1754057301919,0.4565,3606.9,3605.7,2.77337793]
[1754057302169,0.4565,3606.9,3605.5,2.77346853]
[1754057302363,1.05336,3606.8,3605.4,2.77360693]
[1754057302653,1.05336,3606.8,3605.1,2.77380038]
[1754057302654,0.4565,3606.7,3604.9,3.0]
[1754057302855,0.4565,3606.7,3605.2,2.77377121]
[1754057302856,0.55,3606.6,3605.2,2.77377121]
[1754057303066,0.55,3606.4,3604.6,3.0]
[1754057303246,2.79925,3606.5,3604.6,5.77421328]
[1754057303247,0.14849404,3606.3,3604.6,5.77421328]
[1754057303574,0.69849404,3606.2,3604.7,2.77415596]
[1754057303869,0.14849404,3606.1,3605.3,2.77363962]
[1754057304071,0.14849404,3606.1,3604.6,3.0]
[1754057304239,0.14849404,3606.1,3605.4,2.77354964]
[1754057304435,0.14849404,3606.0,3605.3,2.77368958]
[1754057304638,0.14849404,3605.9,3604.8,3.0]
[1754057304838,0.14849404,3605.8,3605.7,2.77338658]
[1754057305131,0.14849404,3605.8,3604.8,3.0]
[1754057305132,0.63610336,3607.4,3604.9,3.0]
[1754057305333,0.25782034,3607.3,3604.7,0.0025]
[1754057305534,0.17960336,3607.4,3605.4,2.77361735]
[1754057305835,0.17960336,3607.4,3607.2,2.77222842]
[1754057306036,0.17960336,3607.4,3607.3,2.77215646]
[1754057307122,0.17960336,3607.4,3606.7,2.77255931]
[1754057307323,0.17960336,3607.4,3607.3,2.77215646]
[1754057307549,0.17960336,3607.4,3607.3,2.91055646]
[1754057308364,0.17960336,3607.4,3607.3,2.77215646]
[1754057308529,0.17960336,3607.4,3607.3,0.1384]
[1754057308960,3.12820336,3607.4,3607.2,0.1384]
[1754057309169,1.0065,3607.3,3605.8,5.13]
[1754057309393,2.3986,3607.3,3607.1,0.1384]
[1754057309570,2.9486,3607.2,3607.1,0.1384]
[1754057309731,2.9486,3607.2,3606.9,0.1384]
[1754057309930,0.31800336,3607.4,3606.9,0.1384]
[1754057309931,0.55,3607.0,3606.9,0.1384]
[1754057310167,2.9486,3607.0,3606.9,0.1384]
[1754057310342,3.24346,3607.0,3605.9,2.77317986]
[1754057310551,3.38186,3607.0,3605.7,2.77332829]
[1754057310747,0.55,3606.9,3606.6,0.1384]
[1754057310971,0.1384,3607.2,3606.6,0.1384]
[1754057311172,1.9421,3607.3,3606.8,0.1384]
[1754057311384,0.4565,3607.2,3604.0,0.833099]
[1754057311542,0.55,3606.6,3602.9,0.0025]
[1754057311744,3.55,3606.4,3604.3,2.77446383]
[1754057312046,3.55,3606.2,3603.7,5.34023124]
[1754057312238,0.49116348,3606.1,3604.7,2.77413546]
[1754057312444,0.49116348,3606.1,3603.9,3.0]
[1754057312677,0.4565,3606.1,3604.6,3.0]
[1754057312877,0.4565,3606.1,3604.4,2.77438686]
[1754057313079,1.0065,3606.6,3604.5,3.0]
[1754057313282,1.0065,3606.6,3604.3,2.77439802]
[1754057313283,0.4565,3606.6,3605.8,2.77327]
[1754057313453,0.17960336,3607.4,3604.0,3.0]
[1754057313454,2.3986,3606.5,3604.0,3.0]
[1754057313649,1.0065,3606.4,3604.0,3.0]
[1754057313842,0.84486,3606.4,3604.6,3.0]
[1754057314069,0.55,3606.2,3604.0,3.0]
[1754057314350,0.55,3606.2,3605.3,2.77363218]
[1754057314660,0.55,3606.2,3603.8,0.0025]
[1754057314661,1.9421,3606.3,3603.7,0.20402923]
[1754057314854,1.9421,3606.3,3603.5,0.0025]
[1754057314855,0.4565,3606.1,3604.2,3.0]
[1754057315041,2.4921,3606.0,3603.7,0.2042582]
[1754057315243,0.55,3605.8,3603.7,5.127]
[1754057315454,0.55,3605.6,3604.8,2.77403391]
[1754057315864,0.55,3605.6,3604.6,2.7741714]
[1754057316071,0.55,3605.6,3604.2,3.0]
[1754057316377,0.55,3605.6,3604.6,2.77415893]
[1754057316563,0.55,3605.6,3604.0,2.77468155]
[1754057316564,0.55,3605.6,3604.7,2.77410363]
[1754057316883,0.55,3605.6,3604.9,2.77395839]
[1754057317050,0.55,3605.6,3604.8,2.77406141]
[1754057317249,1.9421,3606.0,3603.4,5.127]
[1754057317250,0.55,3605.8,3603.4,5.127]
[1754057317457,0.4413,3605.5,3603.4,5.127]
[1754057317660,0.4413,3605.5,3603.5,2.77507978]
[1754057317985,0.55,3605.4,3604.4,2.77436803]
[1754057318192,0.213631,3605.9,3604.9,2.77392968]
[1754057318348,0.63551,3606.2,3604.1,2.77461779]
[1754057318705,0.63551,3606.2,3603.4,5.129]
[1754057318852,0.55,3606.0,3604.8,2.77406612]
[1754057319051,0.55,3605.8,3605.0,2.77392088]
[1754057319299,0.55,3605.6,3604.5,2.77425498]
[1754057319595,0.03466925,3605.5,3604.5,2.7742611]
[1754057319896,0.55,3605.4,3604.0,5.77469478]
[1754057320100,0.55,3605.2,3604.2,2.77448587]
[1754057320387,0.55,3605.2,3604.2,2.77448335]
[1754057320598,0.55,3605.2,3603.4,0.002]
[1754057321050,0.55,3605.2,3604.5,2.77430142]
[1754057321383,0.55,3605.2,3604.7,2.77410402]
[1754057321592,0.55,3605.2,3604.1,2.77461779]
[1754057321895,0.55,3605.2,3604.8,0.1384]
[1754057322064,0.55,3605.0,3604.8,0.1384]
[1754057322266,0.55,3605.0,3603.7,2.77488563]
[1754057322267,2.07771,3606.2,3605.5,2.77347243]
[1754057322576,11.08463775,3607.6,3604.7,2.98527515]
[1754057322577,0.4413,3606.9,3605.2,3.0]
[1754057322775,1.8835,3607.1,3606.5,2.77277138]
[1754057322996,11.787,3607.3,3606.5,2.77277138]
[1754057323299,0.62190336,3607.4,3606.5,5.77277138]
[1754057323647,0.18060336,3607.4,3606.5,5.77277138]
[1754057324047,0.03465195,3607.3,3606.1,2.77302838]
[1754057324252,0.4413,3607.1,3606.5,2.77277138]
[1754057324459,0.18060336,3607.4,3606.5,2.77277138]
[1754057324460,0.18060336,3607.4,3606.5,2.98238123]
[1754057324686,0.18060336,3607.4,3606.5,2.77277138]
[1754057325085,0.55,3607.3,3606.5,2.77277138]
[1754057325267,0.18060336,3607.4,3606.5,5.77277138]
[1754057325479,1e-08,3606.6,3606.5,5.77277138]
[1754057326086,1e-08,3606.6,3606.5,5.98392278]
[1754057326268,1e-08,3606.6,3606.5,11.10792278]
[1754057326715,1e-08,3606.6,3606.5,11.65792278]
[1754057326904,0.4413,3609.0,3607.4,2.77206032]
[1754057327119,0.4413,3609.0,3607.5,3.0]
[1754057327319,0.4413,3609.4,3607.7,3.0]
[1754057327638,0.4413,3609.4,3607.5,3.0]
[1754057327923,0.4413,3609.4,3608.2,3.0]
[1754057328077,0.4413,3609.4,3607.8,2.77177227]
[1754057328277,0.4413,3609.4,3608.8,2.77098549]
[1754057328511,0.4413,3609.4,3608.7,2.77105625]
[1754057328686,1.8835,3609.9,3609.1,2.77071972]
[1754057328873,2.3248,3609.9,3608.4,0.20873351]
[1754057329074,0.23248,3609.8,3608.9,2.77092296]
[1754057329274,0.4413,3609.7,3608.6,2.77108513]
[1754057329578,0.4413,3609.7,3608.8,2.7709328]
[1754057329773,0.4413,3609.7,3608.2,3.0]
[1754057330000,0.55,3609.6,3608.2,3.0]
[1754057330210,0.860728,3609.6,3608.2,3.0]
[1754057330403,0.860728,3609.6,3607.2,3.0]